fUSD/lending_fUSD_20251105
["ID","MTS","AMOUNT","RATE_DAILY","PERIOD"]
[393206203,1762318255290,-2000.0,0.00035616,120]
[393206204,1762318255299,-2000.0,0.00035616,120]
[393206205,1762318255309,-2000.0,0.00035616,120]
[393206206,1762318255318,-2000.0,0.00035616,120]
[393206207,1762318255328,-2000.0,0.00035616,120]
[393206208,1762318255337,-2000.0,0.00035616,120]
[393206209,1762318255347,-2000.0,0.00035616,120]
[393206210,1762318255357,-2000.0,0.00035616,120]
[393206211,1762318255368,-302.0,0.00035616,120]
[393206212,1762318255378,-150.0,0.00035616,2]
[393206213,1762318255388,-150.0,0.00035616,2]
[393206214,1762318255398,-150.0,0.00035616,2]
[393206215,1762318255408,-150.0,0.00035616,2]
[393206216,1762318255419,-150.0,0.00035616,2]
[393206217,1762318255428,-300.0,0.00035616,2]
[393206218,1762318255438,-151.53,0.00035621,60]
[393206219,1762318255449,-150.8,0.00035622,60]
[393206220,1762318255458,-475.65,0.00035643,2]
[393206221,1762318255468,-188.56,0.00035645,60]
[393206222,1762318255478,-1425.0,0.00035684,2]
[393206223,1762318255488,-1678.0,0.00035698,2]
[393206224,1762318255497,-155.79,0.00035702,60]
[393206225,1762318255507,-151.33,0.0003571,60]
[393206226,1762318255517,-1678.0,0.00035718,2]
[393206227,1762318255526,-151.53,0.00035721,60]
[393206228,1762318255536,-150.8,0.00035722,60]
[393206229,1762318255545,-155.8023952,0.00035802,60]
[393206230,1762318255555,-500.0,0.00035807,120]
[393206231,1762318255565,-14798.34098924,0.00035808,2]
[393206232,1762318255575,-151.33,0.0003581,60]
[393206233,1762318255585,-1800.0,0.00035817,7]
[393206234,1762318255595,-151.53,0.00035821,60]
[393206235,1762318255605,-150.8,0.00035822,60]
[393206236,1762318255615,-1678.0,0.00035833,7]
[393206237,1762318255625,-483.52540389,0.00035836,15]
[393206238,1762318255635,-1425.0,0.00035842,2]
[393206239,1762318255644,-199.0,0.0003589,9]
[393206240,1762318255654,-166.0,0.0003589,30]
[393206241,1762318255663,-243.83,0.000359,14]
[393206242,1762318255676,-1094.0,0.000359,7]
[393206243,1762318255687,-151.33,0.0003591,60]
[393206244,1762318255697,-151.53,0.00035921,60]
[393206245,1762318255708,-150.8,0.00035922,60]
[393206246,1762318255718,-1678.0,0.0003597,2]
[393206247,1762318255729,-1000.0,0.00035985,7]
[393206248,1762318255738,-200.0,0.00036,120]
[393206249,1762318255748,-180.0,0.00036,2]
[393206250,1762318255758,-896.01380899,0.00036,2]
[393206251,1762318255769,-477.76462643,0.00036,120]
[393206252,1762318255779,-166.0,0.00036,30]
[393206253,1762318255789,-500.0,0.00036004,2]
[393206254,1762318255799,-1678.0,0.00036005,2]
[393206255,1762318255809,-151.33,0.0003601,60]
[393206256,1762318255819,-1425.0,0.00036015,2]
[393206257,1762318255829,-151.53,0.00036021,60]
[393206258,1762318255839,-150.8,0.00036022,60]
[393206259,1762318255850,-151.33,0.0003611,60]
[393206260,1762318255860,-1678.0,0.00036111,7]
[393206261,1762318255869,-574.0,0.00036119,2]
[393206262,1762318255879,-607.0,0.00036119,2]
[393206263,1762318255889,-3422.0,0.00036119,2]
[393206264,1762318255899,-1315.0,0.00036119,2]
[393206265,1762318255908,-1595.0,0.00036119,2]
[393206266,1762318255919,-820.0,0.00036119,2]
[393206267,1762318255930,-1272.0,0.00036119,2]
[393206268,1762318255941,-812.0,0.00036119,2]
[393206269,1762318255954,-6656.0,0.00036119,2]
[393206270,1762318255964,-2141.0,0.00036119,2]
[393206271,1762318255974,-6473.0,0.00036119,2]
[393206272,1762318255984,-559.0,0.00036119,2]
[393206273,1762318255994,-151.53,0.00036121,60]
[393206274,1762318256004,-150.8,0.00036122,60]
[393206275,1762318256014,-202.500631,0.000362,12]
[393206276,1762318256027,-151.33,0.0003621,60]
[393206277,1762318256037,-151.57,0.00036221,60]
[393206278,1762318256047,-150.81,0.00036222,60]
[393206279,1762318256057,-1425.0,0.00036264,2]
[393206280,1762318256067,-1678.0,0.00036299,2]
[393206281,1762318256076,-151.33,0.0003631,60]
[393206282,1762318256086,-1425.0,0.00036328,2]
[393206283,1762318256096,-500.0,0.00036365,7]
[393206284,1762318256105,-1500.0,0.00036365,7]
[393206285,1762318256115,-644.52809921,0.00036384,30]
[393206286,1762318256125,-152.0,0.00036399,8]
[393206287,1762318256136,-500.0,0.00036399,120]
[393206288,1762318256145,-151.33,0.0003641,60]
[393206289,1762318256155,-415.63,0.00036438,2]
[393206290,1762318256164,-415.63,0.00036438,2]
[393206291,1762318256175,-415.63,0.00036438,2]
[393206292,1762318256185,-415.63,0.00036438,2]
[393206293,1762318256195,-353.76,0.00036438,2]
[393206294,1762318256205,-176.88,0.00036438,2]
[393206295,1762318256215,-169.01,0.00036438,2]
[393206296,1762318256224,-169.01,0.00036438,2]
[393206297,1762318256234,-857.12015367,0.00036439,2]
[393206298,1762318256244,-1425.0,0.00036494,2]
[393206299,1762318256254,-1425.0,0.00036506,2]
[393206300,1762318256264,-151.33,0.0003651,60]
[393206301,1762318256273,-1678.0,0.00036519,120]
[393206302,1762318256283,-644.52809921,0.00036521,30]
[393206303,1762318256292,-500.0,0.00036533,120]
[393206304,1762318256302,-151.33,0.0003661,60]
[393206305,1762318256311,-1800.0,0.00036639,7]
[393206306,1762318256321,-644.52809921,0.00036658,30]
[393206307,1762318256330,-511.85354815,0.00036672,2]
[393206308,1762318256340,-1678.0,0.00036677,2]
[393206309,1762318256350,-151.33,0.0003671,60]
[393206310,1762318256359,-1000.0,0.00036755,7]
[393206311,1762318256369,-5888.0,0.00036781,7]
[393206312,1762318256379,-5888.0,0.00036791,7]
[393206313,1762318256389,-3737.46339716,0.000368,14]
[393206314,1762318256398,-151.41951549,0.0003681,60]
[393206315,1762318256408,-644.52809921,0.00036822,30]
[393206316,1762318256419,-1000.0,0.00036857,7]
[393206317,1762318256429,-1000.0,0.00036864,7]
[393206318,1762318256439,-1000.0,0.00036873,7]
[393206319,1762318256448,-1112.82012191,0.00036889,2]
[393206320,1762318256458,-211.0,0.0003689,30]
[393206321,1762318256468,-305.36166271,0.00036898,2]
[393206322,1762318256478,-854.1552716,0.00036898,2]
[393206323,1762318256488,-199.51581665,0.00036898,7]
[393206324,1762318256498,-1078.0,0.000369,120]
[393206325,1762318256509,-11000.0,0.000369,13]
[393206326,1762318256519,-1425.0,0.00036908,2]
[393206327,1762318256529,-644.52809921,0.00036959,30]
[393206328,1762318256539,-188.56,0.00036964,60]
[393206329,1762318256550,-14798.34098924,0.00036977,2]
[393206330,1762318256559,-500.0,0.00036983,120]
[393206331,1762318256569,-500.0,0.00036983,2]
[393206332,1762318256581,-182169.56936915,0.00036984,28]
[393206333,1762318256591,-675.36438099,0.00036989,10]
[393206334,1762318256601,-300.0,0.00036989,10]
[393206335,1762318256611,-300.0,0.00036989,10]
[393206336,1762318256620,-422.70282212,0.00036989,10]
[393206337,1762318256631,-300.0,0.00036989,10]
[393206338,1762318256640,-500.0,0.00036989,120]
[393206339,1762318256650,-500.0,0.00036989,120]
[393206340,1762318256659,-500.0,0.00036989,120]
[393206341,1762318256669,-500.0,0.00036989,2]
[393206342,1762318256678,-500.0,0.00036989,2]
[393206343,1762318256688,-500.0,0.00036989,2]
[393206344,1762318256698,-527631.27847054,0.0003699,30]
[393206345,1762318256856,-7320.67403768,0.0003699,30]
[393206346,1762318256867,-3402.3725135,0.0003699,30]
[393206347,1762318256879,-2198.91749318,0.0003699,30]
[393206348,1762318256984,-151.0,0.00027732,31]
[393206349,1762318256995,-15156.4955386,0.0003699,30]
[393206350,1762318257185,-151.0,0.00027732,31]
[393206351,1762318257195,-151.0,0.00027822,31]
[393206352,1762318257204,-151.0,0.00027822,31]
[393206353,1762318257213,-151.0,0.00027832,31]
[393206354,1762318257224,-151.0,0.00027832,31]
[393206355,1762318257233,-151.0,0.00027842,31]
[393206356,1762318257242,-151.0,0.00027842,31]
[393206357,1762318257251,-151.0,0.00028967,31]
[393206358,1762318257261,-151.0,0.00028967,31]
[393206359,1762318257270,-3881.36072783,0.00036127,2]
[393206360,1762318264686,195.0,0.00028353,120]
[393206361,1762318268747,300.0,0.00028353,120]
[393206362,1762318268907,331.418428,0.00025775,120]
[393206364,1762318282427,500.0,0.00027547,120]
[393206377,1762318387597,-500.0,0.00016712,2]
[393206378,1762318387617,-500.0,0.00016712,2]
[393206379,1762318387637,-500.0,0.00016712,2]
[393206380,1762318387657,-500.0,0.00016712,2]
[393206381,1762318387678,-500.0,0.00016712,2]
[393206382,1762318387698,-500.0,0.00016712,2]
[393206383,1762318387718,-195.97,0.00016712,2]
[393206384,1762318387739,-2384.03,0.00017158,2]
[393206392,1762318563369,1255.73,0.00026653,120]
[393206393,1762318563559,1255.73,0.00029615,120]
[393206499,1762318781284,500.0,0.00027547,120]
[393206505,1762318843733,-153.0,0.00016612,2]
[393206507,1762318851545,35.61748639,0.00015,2]
[393206508,1762318851571,196.55,0.00015,2]
[393206509,1762318851596,196.55,0.00015,2]
[393206510,1762318851621,196.55,0.00015,2]
[393206511,1762318851646,196.55,0.00015,2]
[393206512,1762318851670,196.55,0.00015,2]
[393206513,1762318851696,158.37400053,0.00015,2]
[393206514,1762318851721,196.55,0.00015,2]
[393206515,1762318851745,152.06851308,0.00015,2]
[393206558,1762319017714,150.0,0.00022664,120]
[393206562,1762319088437,23.08409531,0.00016612,2]
[393206563,1762319088464,217.71718604,0.00016612,2]
[393206564,1762319088491,259.19871865,0.00016612,2]
[393206565,1762319093378,107.42469476,0.00016612,2]
[393206566,1762319093406,164.97968562,0.00016612,2]
[393206567,1762319093435,227.59561962,0.00016612,2]
[393206569,1762319098382,81.90391021,0.00016612,2]
[393206580,1762319230162,-418.09608979,0.00016612,2]
[393206581,1762319230192,-500.0,0.00016612,2]
[393206582,1762319230220,-500.0,0.00016612,2]
[393206583,1762319230251,-500.0,0.00016612,2]
[393206584,1762319230281,-500.0,0.00016612,2]
[393206585,1762319230310,-201.58481839,0.00016693,2]
[393206586,1762319230340,-300.0,0.00016799,2]
[393206587,1762319230372,-1200.0,0.00016799,2]
[393206588,1762319230401,-632.68205004,0.000168,2]
[393206589,1762319230781,-621.06284059,0.000168,2]
[393206590,1762319230813,-500.0,0.000168,2]
[393206591,1762319230841,-500.0,0.000168,2]
[393206592,1762319230868,-503.25417194,0.000168,2]
[393206593,1762319230896,-500.0,0.000168,2]
[393206594,1762319230924,-520.29,0.00017158,2]
[393206595,1762319230953,-1601.68,0.00017473,2]
[393206596,1762319231361,-2904.32,0.00018025,2]
[393206597,1762319231392,-420.0,0.00018352,2]
[393206598,1762319231423,-1671.37,0.00018443,2]
[393206599,1762319231857,-8.63,0.00018443,2]
[393206600,1762319231866,-500.0,0.00018533,2]
[393206601,1762319231876,-20.96423044,0.00018893,2]
[393206603,1762319233139,-2883.35576956,0.00018893,2]
[393206604,1762319233177,-517.76451351,0.00019081,2]
[393206605,1762319233235,-3197.76943386,0.00019273,2]
[393206606,1762319236450,-3057.19046674,0.00019273,2]
[393206607,1762319236480,-150.0,0.00019367,2]
[393206608,1762319236509,-403.4952759,0.00019367,2]
[393206609,1762319242963,241.9165,0.00016512,2]
[393206626,1762319431500,-397.71532973,0.00019268,2]
[393206627,1762319431559,-102.28467027,0.00019268,2]
[393206628,1762319431569,-736.0,0.00019367,2]
[393206629,1762319431579,-1200.0,0.00019367,2]
[393206630,1762319431588,-300.0,0.00019367,2]
[393206631,1762319431598,-300.0,0.00019367,2]
[393206632,1762319431608,-1639.3,0.00019368,2]
[393206633,1762319431617,-4768.117263,0.00019368,2]
[393206634,1762319431628,-1719.15,0.00019368,2]
[393206635,1762319431637,-6909.30728765,0.00019368,2]
[393206636,1762319431649,-3090.68271235,0.00019368,2]
[393206637,1762319431659,-14077.57094455,0.00019368,2]
[393206638,1762319431670,-263.220004,0.00019368,2]
[393206639,1762319431681,-853.75118995,0.00019368,2]
[393206650,1762319432160,-40926.0278615,0.00019368,2]
[393206651,1762319432170,-999.99,0.00019368,2]
[393206652,1762319432182,-9999.99,0.00019368,2]
[393206653,1762319432192,-9999.99,0.00019368,2]
[393206654,1762319432201,-299.99,0.00019368,7]
[393206655,1762319432210,-1589.6,0.00019368,2]
[393206656,1762319432221,-9999.99,0.00019368,2]
[393206657,1762319432230,-150.99,0.00019368,2]
[393206658,1762319432239,-9999.99,0.00019368,2]
[393206659,1762319432248,-150.99,0.00019368,2]
[393206660,1762319432257,-499.99,0.00019368,2]
[393206661,1762319432266,-1167.81,0.00019368,2]
[393206662,1762319432277,-1451.97,0.00019368,2]
[393206663,1762319432286,-3577.32,0.00019368,2]
[393206664,1762319432295,-46785.13105679,0.00019368,2]
[393206665,1762319432307,-11958.17461966,0.00019368,2]
[393206666,1762319432316,-500.0,0.00019373,2]
[393206667,1762319432325,-500.0,0.00019373,2]
[393206668,1762319432335,-501.67217385,0.00019373,2]
[393206669,1762319432345,-500.0,0.00019373,2]
[393206670,1762319432359,-500.0,0.00019373,2]
[393206671,1762319432367,-1090.31022645,0.00019502,2]
[393206672,1762319432383,-73.08977355,0.00019502,2]
[393206673,1762319432392,-404.88903236,0.00019642,2]
[393206674,1762319435487,989.53,0.00030137,120]
[393206677,1762319437419,-1234.41096764,0.00019642,2]
[393206678,1762319437429,-9006.04,0.00019655,2]
[393206679,1762319437438,-2904.32,0.0001976,2]
[393206680,1762319437447,-1639.3,0.00019916,2]
[393206681,1762319437456,-500.0,0.00019921,2]
[393206682,1762319437465,-1639.3,0.0002019,2]
[393206683,1762319437476,-1639.3,0.00020464,2]
[393206684,1762319437486,-2904.32,0.00020628,2]
[393206685,1762319437495,-1639.3,0.00020738,2]
[393206686,1762319437504,-1639.3,0.00021012,2]
[393206687,1762319437514,-420.0,0.00021103,2]
[393206688,1762319437523,-1413.0,0.00021205,2]
[393206689,1762319437532,-1639.3,0.00021286,2]
[393206690,1762319437541,-6254.9599006,0.00021374,2]
[393206691,1762319437550,-1292.72,0.00021449,2]
[393206692,1762319437559,-2904.32,0.00021496,2]
[393206693,1762319437568,-1639.3,0.0002156,2]
[393206694,1762319437578,-1639.3,0.00021834,2]
[393206695,1762319437590,-5774.77,0.00022052,2]
[393206696,1762319437599,-1639.3,0.00022108,2]
[393206697,1762319437608,-500.0,0.00022236,2]
[393206698,1762319437617,-2904.32,0.00022363,2]
[393206699,1762319437626,-1639.34432609,0.00022382,2]
[393206700,1762319437635,-150.0,0.00022664,2]
[393206701,1762319437644,-500.0,0.00022701,2]
[393206702,1762319437654,-14556.51732585,0.00022702,2]
[393206703,1762319437663,-587.0,0.00022993,2]
[393206704,1762319437672,-500.0,0.00023014,2]
[393206705,1762319437681,-270.38680199,0.00023014,2]
[393206706,1762319437690,-500.0,0.00023014,2]
[393206707,1762319437699,-271.56728651,0.00023014,2]
[393206708,1762319437708,-626.82797415,0.00023015,2]
[393206709,1762319437716,-21310.76,0.00023016,2]
[393206710,1762319437726,-510.55136191,0.00023073,2]
[393206711,1762319437735,-500.0,0.00023073,2]
[393206712,1762319437744,-500.0,0.00023073,2]
[393206713,1762319437752,-500.0,0.00023073,2]
[393206714,1762319437761,-500.0,0.00023073,2]
[393206715,1762319437771,-205.86369281,0.00023073,2]
[393206716,1762319437782,-500.0,0.00023073,2]
[393206717,1762319437793,-500.0,0.00023073,2]
[393206718,1762319437802,-500.0,0.00023073,2]
[393206719,1762319437811,-500.79767075,0.00023073,2]
[393206720,1762319437821,-504.93761399,0.00023109,2]
[393206721,1762319437830,-500.0,0.00023109,2]
[393206722,1762319437839,-216.03107045,0.00023109,2]
[393206723,1762319437849,-151.0,0.00023217,2]
[393206724,1762319437858,-151.0,0.00023217,2]
[393206725,1762319437867,-151.0,0.00023217,2]
[393206726,1762319437876,-151.0,0.00023217,2]
[393206727,1762319437886,-151.0,0.00023217,2]
[393206728,1762319437895,-151.0,0.00023217,2]
[393206729,1762319437904,-151.0,0.00023217,2]
[393206730,1762319437913,-151.0,0.00023217,2]
[393206731,1762319437922,-151.0,0.00023217,2]
[393206732,1762319437931,-151.0,0.00023217,2]
[393206733,1762319437941,-151.0,0.00023217,2]
[393206734,1762319437950,-151.0,0.00023217,2]
[393206735,1762319437960,-151.0,0.00023217,2]
[393206736,1762319437969,-151.0,0.00023217,2]
[393206737,1762319437980,-151.0,0.00023217,2]
[393206738,1762319437989,-151.0,0.00023217,2]
[393206739,1762319437998,-151.0,0.00023217,2]
[393206740,1762319438007,-151.0,0.00023217,2]
[393206741,1762319438017,-151.0,0.00023217,2]
[393206742,1762319438027,-151.0,0.00023217,2]
[393206743,1762319438037,-151.0,0.00023217,2]
[393206744,1762319438046,-151.0,0.00023217,2]
[393206745,1762319438056,-151.0,0.00023217,2]
[393206746,1762319438066,-151.0,0.00023217,2]
[393206747,1762319438075,-151.0,0.00023217,2]
[393206748,1762319438086,-151.0,0.00023217,2]
[393206749,1762319438095,-151.0,0.00023217,2]
[393206750,1762319438104,-151.0,0.00023217,2]
[393206751,1762319438114,-151.0,0.00023217,2]
[393206752,1762319438123,-151.0,0.00023217,2]
[393206753,1762319438133,-151.0,0.00023217,2]
[393206754,1762319438143,-237.08435589,0.00023217,2]
[393206755,1762319438152,-151.0,0.00023217,2]
[393206756,1762319438169,-151.0,0.00023217,2]
[393206757,1762319438183,-151.0,0.00023217,2]
[393206758,1762319438194,-151.0,0.00023217,2]
[393206759,1762319438204,-151.0,0.00023217,2]
[393206760,1762319438214,-151.0,0.00023217,2]
[393206761,1762319438226,-151.0,0.00023217,2]
[393206762,1762319438236,-2904.32,0.00023231,2]
[393206763,1762319438246,-500.0,0.00023273,2]
[393206764,1762319438256,-500.0,0.00023273,2]
[393206765,1762319438265,-211.91475997,0.00023273,2]
[393206766,1762319438276,-500.0,0.00023273,2]
[393206767,1762319438288,-6254.9599006,0.00023476,2]
[393206768,1762319438299,-732.5195,0.00023501,2]
[393206769,1762319438308,-6641.826,0.00023501,2]
[393206770,1762319438318,-311.74909945,0.00023521,2]
[393206771,1762319438328,-15867.26,0.00023601,2]
[393206772,1762319438338,-1000.0,0.00023621,2]
[393206773,1762319438347,-1000.0,0.00023621,2]
[393206774,1762319438358,-1000.0,0.00023621,2]
[393206775,1762319438368,-1000.0,0.00023621,2]
[393206776,1762319438378,-1000.0,0.00023621,2]
[393206777,1762319438387,-1000.0,0.00023621,2]
[393206778,1762319438397,-1000.0,0.00023621,2]
[393206779,1762319438406,-1000.0,0.00023657,2]
[393206780,1762319438416,-357.85,0.00023666,3]
[393206781,1762319438425,-500.0,0.00023673,2]
[393206782,1762319438434,-300.08700211,0.00023673,2]
[393206783,1762319438444,-500.0,0.00023673,2]
[393206784,1762319438454,-500.0,0.00023673,2]
[393206785,1762319438463,-204.28733051,0.00023673,2]
[393206786,1762319438473,-501.31532823,0.00023673,2]
[393206787,1762319438483,-502.06961086,0.00023673,2]
[393206788,1762319438492,-200.1487595,0.00023673,2]
[393206789,1762319438502,-10310.58665082,0.00023676,2]
[393206790,1762319438512,-1255.73,0.00023692,2]
[393206791,1762319438522,-500.0,0.00023716,2]
[393206792,1762319438532,-151.0,0.00023781,7]
[393206793,1762319438542,-39055.44,0.00023784,2]
[393206794,1762319438551,-1000.0,0.00023821,2]
[393206795,1762319438561,-166.66,0.00023846,2]
[393206796,1762319438571,-2904.32,0.00024099,2]
[393206797,1762319438581,-1500.0,0.00024168,2]
[393206798,1762319438592,-500.0,0.00024168,2]
[393206799,1762319438602,-1500.0,0.00024168,2]
[393206800,1762319438611,-1500.0,0.00024168,2]
[393206801,1762319438620,-1500.0,0.00024168,2]
[393206802,1762319438630,-1369.18541014,0.00024168,2]
[393206803,1762319438640,-1000.0,0.00024205,2]
[393206804,1762319438650,-1000.0,0.00024221,2]
[393206805,1762319438660,-1000.0,0.00024221,2]
[393206806,1762319438671,-1000.0,0.00024232,2]
[393206807,1762319438682,-751.04941713,0.00024297,2]
[393206808,1762319438692,-1500.0,0.00024368,2]
[393206809,1762319438701,-166.66,0.00024634,2]
[393206810,1762319438710,-190.26,0.00024658,2]
[393206811,1762319438720,-500.0,0.00024716,2]
[393206812,1762319438733,-500.0,0.00024716,2]
[393206813,1762319438743,-500.0,0.00024716,2]
[393206814,1762319438752,-500.0,0.00024716,2]
[393206815,1762319438762,-1575.91277656,0.00024756,2]
[393206816,1762319438771,-1503.08224355,0.00024768,2]
[393206817,1762319438781,-1500.0,0.00024768,2]
[393206818,1762319438791,-500.0,0.00024773,2]
[393206819,1762319438800,-500.0,0.00024773,2]
[393206820,1762319438810,-568.88126658,0.00024773,2]
[393206821,1762319438820,-500.0,0.00024773,2]
[393206822,1762319438830,-500.39073057,0.00024773,2]
[393206823,1762319438840,-57091.8171175,0.000248,3]
[393206824,1762319438850,-477.76462643,0.000248,3]
[393206825,1762319438860,-503.52929673,0.00024916,2]
[393206826,1762319438871,-500.0,0.00024932,2]
[393206827,1762319438882,-500.0,0.00024932,2]
[393206828,1762319438892,-500.0,0.00024932,2]
[393206829,1762319438902,-500.0,0.00024932,2]
[393206830,1762319438912,-2904.32,0.00024966,2]
[393206831,1762319438922,-1099.96,0.00025,2]
[393206832,1762319438932,-150.0,0.00025008,2]
[393206833,1762319438942,-823.0,0.00025053,2]
[393206834,1762319438952,-517.24613966,0.00025316,2]
[393206835,1762319438963,-500.0,0.00025321,2]
[393206836,1762319438974,-1000.0,0.00025321,2]
[393206837,1762319438985,-1000.0,0.00025321,2]
[393206838,1762319438995,-166.66,0.00025421,2]
[393206839,1762319439009,-1099.96,0.000255,2]
[393206840,1762319439020,-5073.7169106,0.00025576,2]
[393206841,1762319439030,-6254.9599006,0.00025577,2]
[393206842,1762319439040,-311.74909938,0.00025616,2]
[393206843,1762319439050,-19030.6057058,0.00025666,3]
[393206844,1762319439060,-675.87598404,0.00025666,2]
[393206845,1762319439071,-33254.3761,0.00025676,2]
[393206846,1762319439082,-7368.2521,0.00025676,2]
[393206847,1762319439093,-1000.0,0.00025676,2]
[393206848,1762319439103,-244.89147252,0.00025676,2]
[393206849,1762319439117,-500.0,0.00025755,2]
[393206850,1762319439127,-76122.4228233,0.00025756,3]
[393206851,1762319439138,-5144.1509573,0.00025756,3]
[393206852,1762319439149,-151.0,0.00025763,7]
[393206853,1762319439159,-500.0,0.00025765,2]
[393206854,1762319439170,-19030.6057058,0.00025765,3]
[393206855,1762319439181,-209336.662764,0.00025766,3]
[393206856,1762319439192,-66873.9624449,0.00025766,3]
[393206857,1762319439202,-1240.57352989,0.00025766,2]
[393206858,1762319439213,-150.4,0.00025766,2]
[393206859,1762319439224,-150.4,0.00025766,2]
[393206860,1762319439234,-150.4,0.00025766,2]
[393206861,1762319439247,-150.4,0.00025766,2]
[393206862,1762319439258,-151.0,0.00025773,7]
[393206863,1762319439269,-308.27972439,0.00025775,2]
[393206864,1762319439285,-500.0,0.00025775,2]
[393206866,1762319439295,-397.6772798,0.00025775,2]
[393206867,1762319439305,-500.0,0.00025775,2]
[393206868,1762319439315,-591.89782335,0.00025775,2]
[393206869,1762319439325,-500.0,0.00025775,2]
[393206870,1762319439335,-500.0,0.00025775,2]
[393206871,1762319439345,-420000.0,0.00025776,2]
[393206873,1762319439356,-1000.0,0.00025776,2]
[393206874,1762319439365,-151.0,0.00025776,7]
[393206876,1762319439375,-151.0,0.00025776,7]
[393206877,1762319439385,-158.72139,0.00025776,7]
[393206878,1762319439394,-151.0,0.00025776,7]
[393206879,1762319439404,-156.37801,0.00025776,7]
[393206881,1762319439413,-151.90923,0.00025776,7]
[393206882,1762319439423,-151.0,0.00025776,7]
[393206883,1762319439432,-151.0,0.00025776,7]
[393206884,1762319439442,-151.0,0.00025776,7]
[393206885,1762319439451,-153.340919,0.00025776,7]
[393206886,1762319439461,-151.0,0.00025776,7]
[393206887,1762319439472,-2572.07547865,0.00025791,3]
[393206888,1762319439482,-800.0,0.000258,9]
[393206889,1762319439492,-477.76462643,0.00025811,2]
[393206890,1762319439501,-2904.32,0.00025834,2]
[393206891,1762319439514,-1500.0,0.00025868,2]
[393206892,1762319439523,-1500.0,0.00025868,2]
[393206893,1762319439532,-2572.07547865,0.0002589,3]
[393206894,1762319439542,-1700.0,0.000259,9]
[393206895,1762319439552,-1099.96,0.00026,30]
[393206896,1762319439562,-166.66,0.00026208,2]
[393206897,1762319439571,-675.87598402,0.00026281,2]
[393206898,1762319439581,-521.05467729,0.00026416,2]
[393206899,1762319439590,-500.0,0.0002652,2]
[393206900,1762319439600,-2904.32,0.00026701,2]
[393206901,1762319439609,-675.87598402,0.00026895,2]
[393206902,1762319439619,-5073.7169106,0.00026977,2]
[393206903,1762319439628,-166.66,0.00026995,2]
[393206904,1762319439639,-1000.0,0.00027261,2]
[393206905,1762319439650,-1152.0,0.00027298,2]
[393206906,1762319439660,-150.4,0.00027377,2]
[393206907,1762319439670,-19030.6057058,0.00027387,3]
[393206908,1762319439679,-2572.07547865,0.00027387,3]
[393206909,1762319439688,-151.0,0.00027394,7]
[393206910,1762319439698,-2318.0,0.00027397,4]
[393206911,1762319439708,-151.0,0.00027397,31]
[393206912,1762319439718,-160.239704,0.00027397,31]
[393206913,1762319439728,-163.770051,0.00027397,31]
[393206914,1762319439737,-155.394837,0.00027397,31]
[393206915,1762319439746,-151.0,0.00027397,31]
[393206916,1762319439755,-160.131203,0.00027397,31]
[393206917,1762319439765,-153.854403,0.00027397,31]
[393206918,1762319439774,-159.094845,0.00027397,31]
[393206919,1762319439783,-151.0,0.00027397,31]
[393206920,1762319439792,-294.714642,0.00027397,31]
[393206921,1762319439801,-158.268548,0.00027397,31]
[393206922,1762319439810,-151.0,0.00027397,31]